bitfinex/quotes_BTCUSD_20250802
["timestamp","ask_amount","ask_price","bid_price","bid_amount"]
[1754114184929,5.17905894,114210.0,114200.0,0.00104]
[1754114185155,5.22060119,114210.0,114200.0,0.00104]
[1754114185889,5.24693319,114210.0,114200.0,4e-05]
[1754114186556,5.24793319,114210.0,114200.0,4e-05]
[1754114187890,5.2616395,114210.0,114200.0,4e-05]
[1754114190789,2.1345925,114210.0,114200.0,4e-05]
[1754114191190,5.2616395,114210.0,114200.0,4e-05]
[1754114191786,2.1345925,114210.0,114200.0,4e-05]
[1754114191988,5.2616395,114210.0,114200.0,4e-05]
[1754114193267,5.2333034,114210.0,114200.0,4e-05]
[1754114194293,5.20639182,114210.0,114200.0,4e-05]
[1754114194503,5.20639182,114210.0,114200.0,0.02384]
[1754114195409,5.29059171,114210.0,114200.0,0.02384]
[1754114197266,5.20639182,114210.0,114200.0,0.02384]
[1754114199709,5.19268551,114210.0,114200.0,0.02384]
[1754114202322,5.20639147,114210.0,114200.0,0.02384]
[1754114203507,2.05301247,114210.0,114200.0,0.02384]
[1754114203745,5.18005947,114210.0,114200.0,0.02384]
[1754114203969,5.16635351,114210.0,114200.0,0.02384]
[1754114205350,5.19268551,114210.0,114200.0,0.02384]
[1754114206821,5.19268551,114210.0,114200.0,0.02708]
[1754114206822,5.20639147,114210.0,114200.0,0.02708]
[1754114207551,2.07934447,114210.0,114200.0,0.02708]
[1754114207804,5.20639147,114210.0,114200.0,0.02708]
[1754114214530,4.59764467,114210.0,114200.0,0.02708]
[1754114216099,1.47059767,114210.0,114200.0,0.02708]
[1754114216463,1.45689171,114210.0,114200.0,0.02708]
[1754114216668,4.58393871,114210.0,114200.0,0.02708]
[1754114217632,1.45689171,114210.0,114200.0,0.02708]
[1754114217819,5.19268551,114210.0,114200.0,0.02708]
[1754114219156,5.20639148,114210.0,114200.0,0.02708]
[1754114219654,2.07934448,114210.0,114200.0,0.02708]
[1754114219858,5.20639148,114210.0,114200.0,0.02708]
[1754114225970,5.01438853,114210.0,114200.0,0.02708]
[1754114227902,5.35438853,114210.0,114200.0,0.02708]
[1754114228995,2.22734153,114210.0,114200.0,0.02708]
[1754114229196,5.35438853,114210.0,114200.0,0.02708]
[1754114229955,5.43858842,114210.0,114200.0,0.02708]
[1754114231123,5.35438853,114210.0,114200.0,0.02708]
[1754114232776,4.74564173,114210.0,114200.0,0.02708]
[1754114233005,5.35438853,114210.0,114200.0,0.02708]
[1754114234895,5.34068256,114210.0,114200.0,0.02708]
[1754114236376,2.21363556,114210.0,114200.0,0.02708]
[1754114236530,5.34068256,114210.0,114200.0,0.02708]
[1754114239102,5.35438855,114210.0,114200.0,0.02708]
[1754114242484,4.74564175,114210.0,114200.0,0.02708]
[1754114242910,1.61859475,114210.0,114200.0,0.02708]
[1754114243129,4.74564175,114210.0,114200.0,0.02708]
[1754114245073,5.35438855,114210.0,114200.0,0.02708]
[1754114246066,4.74564175,114210.0,114200.0,0.02708]
[1754114247310,1.61859475,114210.0,114200.0,0.02708]
[1754114247549,4.74564175,114210.0,114200.0,0.02708]
[1754114248322,4.61240175,114210.0,114200.0,0.02708]
[1754114248559,4.74532175,114210.0,114200.0,0.02708]
[1754114249107,1.61827475,114210.0,114200.0,0.02708]
[1754114249293,4.74532175,114210.0,114200.0,0.02708]
[1754114249710,4.81581565,114210.0,114200.0,0.02708]
[1754114249914,4.73161576,114210.0,114200.0,0.02708]
[1754114252411,4.74532224,114210.0,114200.0,0.02708]
[1754114253837,4.73161576,114210.0,114200.0,0.02708]
[1754114257882,4.74532176,114210.0,114200.0,0.02708]
[1754114262305,4.79800176,114210.0,114200.0,0.02708]
[1754114262459,4.74532176,114210.0,114200.0,0.02708]
[1754114262836,1.61827476,114210.0,114200.0,0.02708]
[1754114263024,4.74532176,114210.0,114200.0,0.02708]
[1754114264055,1.61827476,114210.0,114200.0,0.02708]
[1754114264283,4.74532176,114210.0,114200.0,0.02708]
[1754114266682,4.73161576,114210.0,114200.0,0.02708]
[1754114269110,4.73161576,114210.0,114200.0,0.02922]
[1754114269311,4.74532174,114210.0,114200.0,0.02922]
[1754114275535,1.61827474,114210.0,114200.0,0.02922]
[1754114275805,4.74532174,114210.0,114200.0,0.02922]
[1754114280740,4.13657494,114210.0,114200.0,0.02922]
[1754114280920,4.74532174,114210.0,114200.0,0.02922]
[1754114284005,1.61827474,114210.0,114200.0,0.02922]
[1754114284211,4.74532174,114210.0,114200.0,0.02922]
[1754114291241,1.61827474,114210.0,114200.0,0.02922]
[1754114291453,4.74532174,114210.0,114200.0,0.02922]
[1754114292262,1.61827474,114210.0,114200.0,0.02922]
[1754114292531,4.74532174,114210.0,114200.0,0.02922]
[1754114294808,4.73161576,114210.0,114200.0,0.02922]
[1754114298430,1.60456876,114210.0,114200.0,0.02922]
[1754114298687,4.73161576,114210.0,114200.0,0.02922]
[1754114298826,4.74532178,114210.0,114200.0,0.02922]
[1754114300623,1.61827478,114210.0,114200.0,0.02922]
[1754114300802,4.74532178,114210.0,114200.0,0.02922]
[1754114301771,4.13657498,114210.0,114200.0,0.02922]
[1754114301954,4.74532178,114210.0,114200.0,0.02922]
[1754114302511,4.13657498,114210.0,114200.0,0.02922]
[1754114302708,4.74532178,114210.0,114200.0,0.02922]
[1754114304207,4.74524178,114210.0,114200.0,0.02922]
[1754114304764,1.61819478,114210.0,114200.0,0.02922]
[1754114305190,4.74524178,114210.0,114200.0,0.02922]
[1754114308223,1.61819478,114210.0,114200.0,0.02922]
[1754114308545,4.74524178,114210.0,114200.0,0.02922]
[1754114309253,1.61819478,114210.0,114200.0,0.02922]
[1754114309455,4.74524178,114210.0,114200.0,0.02922]
[1754114315091,4.61240178,114210.0,114200.0,0.02922]
[1754114315456,4.74524178,114210.0,114200.0,0.02922]
[1754114316517,4.82944167,114210.0,114200.0,0.02922]
[1754114318745,4.13649498,114210.0,114200.0,0.02922]
[1754114318966,4.74524178,114210.0,114200.0,0.02922]
[1754114319384,4.73153576,114210.0,114200.0,0.02922]
[1754114322209,4.74524151,114210.0,114200.0,0.02922]
[1754114323643,4.73153576,114210.0,114200.0,0.02922]
[1754114324251,1.60448876,114210.0,114200.0,0.02922]
[1754114324684,4.73153576,114210.0,114200.0,0.02922]
[1754114325311,1.60448876,114210.0,114200.0,0.02922]
[1754114325595,4.73153576,114210.0,114200.0,0.02922]
[1754114326017,4.12278896,114210.0,114200.0,0.02922]
[1754114326226,4.73153576,114210.0,114200.0,0.02922]
[1754114326435,4.7452415,114210.0,114200.0,0.02922]
[1754114334427,1.6181945,114210.0,114200.0,0.02922]
[1754114334585,4.7452415,114210.0,114200.0,0.02922]
[1754114336501,4.73153576,114210.0,114200.0,0.02922]
[1754114337753,4.12278896,114210.0,114200.0,0.02922]
[1754114337975,4.73153576,114210.0,114200.0,0.02922]
[1754114339355,4.74524141,114210.0,114200.0,0.02922]
[1754114339555,1.61819441,114210.0,114200.0,0.02922]
[1754114340201,4.74524141,114210.0,114200.0,0.02922]
[1754114341032,4.53587933,114210.0,114200.0,0.02922]
[1754114341261,4.71099534,114210.0,114200.0,0.02922]
[1754114343595,4.10224854,114210.0,114200.0,0.02922]
[1754114343790,4.71099534,114210.0,114200.0,0.02922]
[1754114344174,1.58394834,114210.0,114200.0,0.02922]
[1754114344377,4.71099534,114210.0,114200.0,0.02922]
[1754114353441,4.79519523,114210.0,114200.0,0.02922]
[1754114353652,1.66814823,114210.0,114200.0,0.02922]
[1754114353862,4.71099534,114210.0,114200.0,0.02922]
[1754114355661,1.58394834,114210.0,114200.0,0.02922]
[1754114355874,4.71099534,114210.0,114200.0,0.02922]
[1754114359171,4.69728969,114210.0,114200.0,0.02922]
[1754114361957,4.71099537,114210.0,114200.0,0.02922]
[1754114362688,4.71099537,114210.0,114200.0,0.02708]
[1754114363222,4.69728969,114210.0,114200.0,0.02708]
[1754114364229,1.57024269,114210.0,114200.0,0.02708]
[1754114364411,4.69728969,114210.0,114200.0,0.02708]
[1754114366256,4.71099537,114210.0,114200.0,0.02708]
[1754114367258,1.58394837,114210.0,114200.0,0.02708]
[1754114367395,4.71099537,114210.0,114200.0,0.02708]
[1754114371265,4.50898738,114210.0,114200.0,0.02708]
[1754114372416,1.38194038,114210.0,114200.0,0.02708]
[1754114372609,4.53855061,114210.0,114200.0,0.02708]
[1754114373441,1.41150361,114210.0,114200.0,0.02708]
[1754114373657,4.53855061,114210.0,114200.0,0.02708]
[1754114376512,4.52484493,114210.0,114200.0,0.02708]
[1754114378758,1.39779793,114210.0,114200.0,0.02708]
[1754114378968,4.52484493,114210.0,114200.0,0.02708]
[1754114379398,4.53855064,114210.0,114200.0,0.02708]
[1754114386950,1.41150364,114210.0,114200.0,0.02708]
[1754114387118,4.53855064,114210.0,114200.0,0.02708]
[1754114387997,1.41150364,114210.0,114200.0,0.02708]
[1754114388203,4.53855064,114210.0,114200.0,0.02708]
[1754114393224,4.59123064,114210.0,114200.0,0.02708]
[1754114393456,4.53855064,114210.0,114200.0,0.02708]
[1754114398729,1.41150364,114210.0,114200.0,0.02708]
[1754114399012,4.53855064,114210.0,114200.0,0.02708]
[1754114401538,4.40571064,114210.0,114200.0,0.02708]
[1754114401968,1.41138364,114210.0,114200.0,0.02708]
[1754114402176,4.40571064,114210.0,114200.0,0.02708]
[1754114402395,4.53843064,114210.0,114200.0,0.02708]
[1754114403612,3.92968384,114210.0,114200.0,0.02708]
[1754114403847,4.53843064,114210.0,114200.0,0.02908]
[1754114404062,1.41138364,114210.0,114200.0,0.02908]
[1754114404486,4.53843064,114210.0,114200.0,0.02908]
[1754114405243,4.55587966,114210.0,114200.0,0.02908]
[1754114408179,3.71276395,114210.0,114200.0,0.02908]
[1754114408408,3.71276395,114210.0,114200.0,0.6378268]
[1754114408608,3.83173824,114210.0,114200.0,0.6378268]
[1754114411341,3.8454437,114210.0,114200.0,0.6378268]
[1754114411887,3.8454437,114210.0,114200.0,0.02908]
[1754114412295,4.53839039,114210.0,114200.0,0.02908]
[1754114413480,4.4541905,114210.0,114200.0,0.02908]
[1754114415179,1.3271435,114210.0,114200.0,0.02908]
[1754114415401,4.4541905,114210.0,114200.0,0.02908]
[1754114416226,1.3271435,114210.0,114200.0,0.02908]
[1754114416427,4.4541905,114210.0,114200.0,0.02908]
[1754114416680,3.8454437,114210.0,114200.0,0.02908]
[1754114416835,4.4541905,114210.0,114200.0,0.02908]
[1754114419271,4.44048504,114210.0,114200.0,0.02908]
[1754114423628,4.45419056,114210.0,114200.0,0.02908]
[1754114426191,3.71276376,114210.0,114200.0,0.02908]
[1754114426462,4.45419056,114210.0,114200.0,0.02908]
[1754114433296,4.45419056,114210.0,114200.0,0.01908]
[1754114435647,4.44048504,114210.0,114200.0,0.01908]
[1754114436216,1.31343804,114210.0,114200.0,0.01908]
[1754114436416,4.44048504,114210.0,114200.0,0.01908]
[1754114437311,4.44044504,114210.0,114200.0,0.01908]
[1754114438453,4.45415055,114210.0,114200.0,0.01908]
[1754114441466,4.53835044,114210.0,114200.0,0.01908]
[1754114442568,1.41130344,114210.0,114200.0,0.01908]
[1754114442705,4.45415055,114210.0,114200.0,0.01908]
[1754114443572,4.44044504,114210.0,114200.0,0.01908]
[1754114445830,1.31339804,114210.0,114200.0,0.01908]
[1754114446035,4.44044504,114210.0,114200.0,0.01908]
[1754114447422,4.45415054,114210.0,114200.0,0.01908]
[1754114447631,4.53835043,114210.0,114200.0,0.01908]
[1754114447809,1.41130343,114210.0,114200.0,0.01908]
[1754114448014,4.53835043,114210.0,114200.0,0.01908]
[1754114451299,4.2616155,114210.0,114200.0,0.01908]
[1754114454073,3.6528687,114210.0,114200.0,0.01908]
[1754114454273,4.2616155,114210.0,114200.0,0.01908]
[1754114456398,1.1345685,114210.0,114200.0,0.01908]
[1754114456724,4.2616155,114210.0,114200.0,0.01908]
[1754114460424,3.6528687,114210.0,114200.0,0.01908]
[1754114460661,4.2616155,114210.0,114200.0,0.01908]
[1754114463256,4.2616155,114210.0,114200.0,0.01708]
[1754114465918,1.1345685,114210.0,114200.0,0.01708]
[1754114466116,4.2616155,114210.0,114200.0,0.01708]
[1754114478677,4.24791,114210.0,114200.0,0.01708]
[1754114479030,4.24791,114210.0,114180.0,0.02633]
[1754114479031,0.51514668,114190.0,114180.0,0.02633]
[1754114479264,3.127047,114180.0,114170.0,0.20264334]
[1754114479559,3.64220902,114180.0,114170.0,0.002]
[1754114479782,3.77480902,114180.0,114170.0,0.02857]
[1754114480681,4.38355582,114180.0,114170.0,0.02857]
[1754114480893,3.77480902,114180.0,114170.0,0.02857]
[1754114481079,3.77480902,114180.0,114170.0,0.03257]
[1754114481500,3.78851707,114180.0,114170.0,0.03257]
[1754114481913,3.78851707,114180.0,114170.0,0.03557]
[1754114483108,3.77480902,114180.0,114170.0,0.03557]
[1754114483780,3.77480902,114180.0,114170.0,0.03157]
[1754114484190,3.77480902,114180.0,114170.0,0.02857]
[1754114484323,3.77480902,114180.0,114170.0,0.03157]
[1754114484538,3.77480902,114180.0,114170.0,0.03357]
[1754114485581,3.77480902,114180.0,114170.0,0.06128559]
[1754114486132,3.77480902,114180.0,114170.0,0.03357]
[1754114486287,3.78851666,114180.0,114170.0,0.03357]
[1754114486910,3.78851666,114180.0,114170.0,0.6423168]
[1754114487353,3.61335464,114180.0,114170.0,0.6423168]
[1754114492549,3.61335464,114180.0,114170.0,0.03357]
[1754114492731,3.61335464,114180.0,114170.0,0.6423168]
[1754114493541,3.61335464,114180.0,114170.0,0.03357]
[1754114493747,3.61335464,114180.0,114170.0,0.6423168]
[1754114494128,3.61335464,114180.0,114170.0,0.72651669]
[1754114494477,3.61335464,114180.0,114170.0,0.11776989]
[1754114494754,3.61335464,114180.0,114170.0,0.6423168]
[1754114499606,3.599647,114180.0,114170.0,0.6423168]
[1754114499816,3.599647,114180.0,114170.0,0.03357]
[1754114500026,3.599647,114180.0,114170.0,0.6423168]
[1754114501751,3.467047,114180.0,114170.0,1.46786349]
[1754114501962,3.467047,114180.0,114170.0,1.55206338]
[1754114502229,0.34,114180.0,114170.0,1.55206338]
[1754114502448,0.35370706,114180.0,114170.0,0.96964958]
[1754114503685,0.34,114180.0,114170.0,0.96964958]
[1754114506668,0.35370711,114180.0,114170.0,0.96964958]
[1754114508420,0.35370711,114180.0,114170.0,0.94331658]
[1754114513159,0.34,114180.0,114170.0,0.94331658]
[1754114516297,0.35370713,114180.0,114170.0,0.94331658]
[1754114517769,0.35370713,114180.0,114170.0,0.33456978]
[1754114518011,0.35370713,114180.0,114170.0,0.85911669]
[1754114520115,0.35370713,114180.0,114170.0,0.85903669]
[1754114523065,0.35370713,114180.0,114170.0,0.88536869]
[1754114526434,0.34,114180.0,114170.0,0.88536869]
[1754114527801,0.34,114180.0,114170.0,0.27662189]
[1754114528002,4.0757938,114180.0,114170.0,0.27470189]
[1754114528408,3.467047,114180.0,114170.0,0.27470189]
[1754114528604,3.467047,114180.0,114170.0,0.24836989]
[1754114528842,0.34,114180.0,114170.0,0.24836989]
[1754114529041,3.467047,114180.0,114170.0,0.24836989]
[1754114529276,3.467047,114180.0,114170.0,0.24832989]
[1754114529438,3.48075436,114180.0,114170.0,0.24832989]
[1754114531142,3.48075436,114180.0,114170.0,0.25047989]
[1754114531548,3.48075436,114180.0,114170.0,0.27681289]
[1754114531789,3.61331436,114180.0,114170.0,0.88555969]
[1754114532694,3.61331436,114180.0,114170.0,0.27681289]
[1754114533257,3.77476902,114180.0,114170.0,0.27681289]
[1754114533479,3.77476902,114180.0,114170.0,0.25047989]
[1754114533714,3.599607,114180.0,114170.0,0.25047989]
[1754114533966,3.77476902,114180.0,114170.0,0.25047989]
[1754114534701,3.599607,114180.0,114170.0,0.25047989]
[1754114535292,4.38351582,114180.0,114170.0,0.16108]
[1754114535541,3.77476902,114180.0,114170.0,0.16108]
[1754114536356,3.77476902,114180.0,114170.0,0.02852]
[1754114537427,3.78847651,114180.0,114170.0,0.02852]
[1754114540124,1.27017631,114180.0,114170.0,0.02852]
[1754114540521,4.39722331,114180.0,114170.0,0.02852]
[1754114541167,4.39722331,114180.0,114170.0,0.0317]
[1754114543709,3.78847651,114180.0,114170.0,0.0317]
[1754114543948,4.39722331,114180.0,114170.0,0.0317]
[1754114547312,4.39722331,114180.0,114170.0,0.6425468]
[1754114547313,3.78847651,114180.0,114170.0,0.6425468]
[1754114547549,3.78847651,114180.0,114170.0,0.0338]
[1754114549518,3.78847651,114180.0,114170.0,0.6425468]
[1754114551360,3.78847651,114180.0,114170.0,0.0338]
[1754114551852,3.61331449,114180.0,114170.0,0.0338]
[1754114552055,3.78847651,114180.0,114170.0,0.0338]
[1754114553605,0.66142951,114180.0,114170.0,0.0338]
[1754114553770,3.78847651,114180.0,114170.0,0.0338]
[1754114554799,3.77476902,114180.0,114170.0,0.0338]
[1754114555044,4.38351582,114180.0,114170.0,0.0338]
[1754114555861,4.38351582,114180.0,114170.0,0.0317]
[1754114557830,4.39722332,114180.0,114170.0,0.0317]
[1754114563517,4.05722332,114180.0,114170.0,0.11163398]
[1754114563946,4.05722332,114180.0,114170.0,0.0317]
[1754114565054,0.93017632,114180.0,114170.0,0.0317]
[1754114565256,4.05722332,114180.0,114170.0,0.0317]
[1754114567880,3.44847652,114180.0,114170.0,0.0317]
[1754114568074,4.05722332,114180.0,114170.0,0.0317]
[1754114574347,4.39722332,114180.0,114170.0,0.0317]
[1754114575307,3.78847652,114180.0,114170.0,0.03373]
[1754114575682,3.77476902,114180.0,114170.0,0.03373]
[1754114578411,3.78847655,114180.0,114170.0,0.03373]
[1754114579352,4.39722335,114180.0,114170.0,0.03373]
[1754114579816,3.78847655,114180.0,114170.0,0.03373]
[1754114580327,3.78847655,114180.0,114170.0,0.11386698]
[1754114580741,3.78847655,114180.0,114170.0,0.03373]
[1754114581407,4.39722335,114180.0,114170.0,0.03373]
[1754114581553,3.78847655,114180.0,114170.0,0.03373]
[1754114581752,4.39722335,114180.0,114170.0,0.03373]
[1754114582183,1.27017635,114180.0,114170.0,0.03373]
[1754114582454,4.39722335,114180.0,114170.0,0.11386698]
[1754114583224,3.78847655,114180.0,114170.0,0.11386698]
[1754114585569,3.77476902,114180.0,114170.0,0.11386698]
[1754114586731,3.77476902,114180.0,114170.0,0.03373]
[1754114588442,3.78847698,114180.0,114170.0,0.03373]
[1754114588692,4.39722378,114180.0,114170.0,0.02852]
[1754114588874,5.01049058,114180.0,114170.0,0.005]
[1754114589946,5.24469047,114180.0,114170.0,0.005]
[1754114590096,5.18740209,114180.0,114170.0,0.005]
[1754114590301,3.96990849,114180.0,114170.0,0.005]
[1754114590666,3.94299698,114180.0,114170.0,0.005]
[1754114590870,5.16049058,114180.0,114170.0,0.005]
[1754114591269,3.94299698,114180.0,114170.0,0.005]
[1754114591451,5.16049058,114180.0,114170.0,0.002]
[1754114591608,3.64222436,114170.0,114160.0,0.02281]
[1754114591815,4.38417116,114170.0,114160.0,0.02582]
[1754114592770,1.25712416,114170.0,114160.0,0.02629814]
[1754114592931,4.38417116,114170.0,114160.0,0.02629814]
[1754114593354,4.38417116,114170.0,114160.0,0.02829814]
[1754114593898,3.77542436,114170.0,114160.0,0.03129814]
[1754114594105,4.38417116,114170.0,114160.0,0.03332814]
[1754114594452,3.77542436,114170.0,114160.0,0.03332814]
[1754114594889,1.0819468,114170.0,114160.0,0.03332814]
[1754114595102,3.77542436,114170.0,114160.0,0.03332814]
[1754114595305,4.38417116,114170.0,114160.0,0.03332814]
[1754114595570,4.39788011,114170.0,114160.0,0.03332814]
[1754114596025,4.22270275,114170.0,114160.0,0.03332814]
[1754114597315,4.39788011,114170.0,114160.0,0.03332814]
[1754114598096,1.27083311,114170.0,114160.0,0.03332814]
[1754114598302,4.39788011,114170.0,114160.0,0.03332814]
[1754114599901,4.39788011,114170.0,114160.0,0.02828814]
[1754114602173,4.39788011,114170.0,114160.0,0.00547814]
[1754114602571,4.39788011,114170.0,114160.0,0.02828814]
[1754114605201,1.27083311,114170.0,114160.0,0.02828814]
[1754114605401,4.39788011,114170.0,114160.0,0.02828814]
[1754114606227,3.78913331,114170.0,114160.0,0.02828814]
[1754114606452,4.39788011,114170.0,114160.0,0.02828814]
[1754114607767,4.39788011,114170.0,114160.0,0.03145814]
[1754114609177,4.39788011,114170.0,114160.0,0.00547814]
[1754114609513,4.39788011,114170.0,114160.0,0.02894814]
[1754114610007,4.39788011,114170.0,114160.0,0.03211814]
[1754114610727,3.8733332,114170.0,114160.0,0.02894814]
[1754114610940,0.7462862,114170.0,114160.0,0.02894814]
[1754114611155,0.66208631,114170.0,114160.0,0.02894814]
[1754114611373,3.78913331,114170.0,114160.0,0.02894814]
[1754114611581,4.39788011,114170.0,114160.0,0.02894814]
[1754114611799,4.39788011,114170.0,114160.0,0.00547814]
[1754114612019,3.78913331,114170.0,114160.0,0.00547814]
[1754114612262,4.39788011,114170.0,114160.0,0.00547814]
[1754114612709,3.78913331,114170.0,114160.0,0.00547814]
[1754114613384,4.39788011,114170.0,114160.0,0.00547814]
[1754114613768,4.39788011,114170.0,114160.0,0.02894814]
[1754114613958,3.78913331,114170.0,114160.0,0.02894814]
[1754114614139,4.39788011,114170.0,114160.0,0.02894814]
[1754114614340,4.39788011,114170.0,114160.0,0.03211814]
[1754114614893,3.77542436,114170.0,114160.0,0.03420814]
[1754114615099,4.38417116,114170.0,114160.0,0.03420814]
[1754114615249,4.38417116,114170.0,114160.0,0.06726685]
[1754114615811,4.38417116,114170.0,114160.0,0.03420814]
[1754114617785,4.39788063,114170.0,114160.0,0.03420814]
[1754114618148,4.39788063,114170.0,114160.0,0.03211814]
[1754114618484,4.39788063,114170.0,114160.0,0.02894814]
[1754114619530,4.39788063,114170.0,114160.0,0.00547814]
[1754114620246,4.40240063,114170.0,114160.0,0.00547814]
[1754114620665,4.42873963,114170.0,114160.0,0.00547814]
[1754114620873,4.42421963,114170.0,114160.0,0.00547814]
[1754114621108,4.42421963,114170.0,114160.0,0.00247814]
[1754114621305,4.39788063,114170.0,114160.0,0.00347814]
[1754114621510,5.03805894,114170.0,114160.0,0.00147814]
[1754114621713,5.06439894,114170.0,114160.0,0.00247814]
[1754114623880,5.16604785,114170.0,114160.0,0.00247814]
[1754114624887,3.96318088,114170.0,114160.0,0.00247814]
[1754114625105,5.18067448,114170.0,114160.0,0.00247814]
[1754114625672,5.18067448,114170.0,114160.0,0.00147814]
[1754114625874,2.05362748,114170.0,114160.0,0.00047814]
[1754114626070,5.18067448,114170.0,114160.0,0.00047814]
[1754114626969,2.05362748,114170.0,114160.0,0.00047814]
[1754114627213,5.18067448,114170.0,114160.0,0.00047814]
[1754114627656,3.91100185,114150.0,114140.0,0.02664]
[1754114627841,4.04704185,114150.0,114140.0,0.02887338]
[1754114628294,4.07279556,114150.0,114140.0,0.02361338]
[1754114628495,4.41279556,114150.0,114140.0,0.02361338]
[1754114628618,3.80404876,114150.0,114140.0,0.02361338]
[1754114628840,4.52390696,114150.0,114140.0,0.02561338]
[1754114629074,5.07951229,114150.0,114140.0,0.00214338]
[1754114629359,3.92887307,114150.0,114140.0,0.00214338]
[1754114629577,5.07951229,114150.0,114140.0,0.00214338]
[1754114629849,5.07951229,114150.0,114140.0,0.00514338]
[1754114630318,5.10148131,114150.0,114140.0,0.00514338]
[1754114630539,3.95084209,114150.0,114140.0,0.00514338]
[1754114630754,5.10148131,114150.0,114140.0,0.00514338]
[1754114631862,3.95084209,114150.0,114140.0,0.00514338]
[1754114632148,4.5216417,114150.0,114140.0,0.00514338]
[1754114632393,4.49473019,114150.0,114140.0,0.02861338]
[1754114632946,4.57893008,114150.0,114140.0,0.02861338]
[1754114633371,4.56521717,114150.0,114140.0,0.02861338]
[1754114633747,5.14053678,114150.0,114140.0,0.02861338]
[1754114634507,5.05633689,114150.0,114140.0,0.02861338]
[1754114634728,3.76965767,114150.0,114140.0,0.03073338]
[1754114634970,3.89008865,114150.0,114140.0,0.03387338]
[1754114635161,1.33836126,114150.0,114140.0,0.03387338]
[1754114635391,4.46540826,114150.0,114140.0,0.03387338]
[1754114635604,4.54960815,114150.0,114140.0,0.03387338]
[1754114636020,4.54964815,114150.0,114140.0,0.03387338]
[1754114636435,4.46544826,114150.0,114140.0,0.03387338]
[1754114637008,3.89012865,114150.0,114140.0,0.03387338]
[1754114637233,4.46544826,114150.0,114140.0,0.03387338]
[1754114637638,4.47916114,114150.0,114140.0,0.03387338]
[1754114638628,4.27130121,114150.0,114140.0,0.03387338]
[1754114638938,4.38252139,114150.0,114140.0,0.03387338]
[1754114641304,0.52202276,114150.0,114140.0,0.03387338]
[1754114641532,3.78702976,114150.0,114140.0,0.03926072]
[1754114642069,3.78702976,114150.0,114140.0,0.03387338]
[1754114642272,3.81280198,114150.0,114140.0,0.03387338]
[1754114643103,3.63759393,114150.0,114140.0,0.03387338]
[1754114643309,3.81280198,114150.0,114140.0,0.03387338]
[1754114648313,4.3936092,114150.0,114140.0,0.00514338]
[1754114648517,1.2930818,114150.0,114140.0,0.00514338]
[1754114648720,4.4201288,114150.0,114140.0,0.03006338]
[1754114649146,3.86623309,114150.0,114140.0,0.03006338]
[1754114649357,3.83971349,114150.0,114140.0,0.03006338]
[1754114649563,3.83971349,114150.0,114140.0,0.03320338]
[1754114652144,3.83971349,114150.0,114140.0,0.00514338]
[1754114652557,3.83971349,114150.0,114140.0,0.03006338]
[1754114652745,0.71266649,114150.0,114140.0,0.03006338]
[1754114652907,3.83971349,114150.0,114140.0,0.03320338]
[1754114654188,3.81280198,114150.0,114140.0,0.03320338]
[1754114655033,0.68575498,114150.0,114140.0,0.03320338]
[1754114655325,0.68575498,114150.0,114140.0,0.03006338]
[1754114655535,3.81280198,114150.0,114140.0,0.03006338]
[1754114656091,3.81280198,114150.0,114140.0,0.03320338]
[1754114656092,3.7990891,114150.0,114140.0,0.03320338]
[1754114656281,4.35298481,114150.0,114140.0,0.03320338]
[1754114656792,4.35298481,114150.0,114140.0,0.03006338]
[1754114656998,4.35750481,114150.0,114140.0,0.00514338]
[1754114657251,4.49513581,114150.0,114140.0,0.00514338]
[1754114657991,4.71258483,114150.0,114140.0,0.00514338]
[1754114658189,4.73790483,114150.0,114140.0,0.00514338]
[1754114659203,4.75161879,114150.0,114140.0,0.00514338]
[1754114660162,4.72509919,114150.0,114140.0,0.00514338]
[1754114661406,4.14429197,114150.0,114140.0,0.00514338]
[1754114661690,4.69366768,114150.0,114140.0,0.00514338]
[1754114662046,4.13977197,114150.0,114140.0,0.00514338]
[1754114662240,4.69366768,114150.0,114140.0,0.00514338]
[1754114662559,4.69366768,114150.0,114140.0,0.03006338]
[1754114663116,4.13977197,114150.0,114140.0,0.04064372]
[1754114663324,4.12605801,114150.0,114140.0,0.04064372]
[1754114663517,4.12605801,114150.0,114140.0,0.03532338]
[1754114664345,4.12605801,114150.0,114140.0,0.03320338]
[1754114664590,4.67995372,114150.0,114140.0,0.03320338]
[1754114665707,4.68000771,114150.0,114140.0,0.03320338]
[1754114666566,1.56667424,114150.0,114140.0,0.03320338]
[1754114666974,4.69372124,114150.0,114140.0,0.03533338]
[1754114670315,4.13977154,114150.0,114140.0,0.03533338]
[1754114670544,4.69372124,114150.0,114140.0,0.03533338]
[1754114670802,1.56667424,114150.0,114140.0,0.03533338]
[1754114671059,4.832218,114150.0,114140.0,0.03533338]
[1754114673015,4.13977154,114150.0,114140.0,0.03533338]
[1754114673195,4.832218,114150.0,114140.0,0.03533338]
[1754114675317,4.13977154,114150.0,114140.0,0.03533338]
[1754114675520,4.832218,114150.0,114140.0,0.03533338]
[1754114675929,1.705171,114150.0,114140.0,0.03533338]
[1754114676136,4.832218,114150.0,114140.0,0.03533338]
[1754114676909,4.67944909,114150.0,114140.0,0.04086672]
[1754114677125,4.65412909,114150.0,114140.0,0.04086672]
[1754114677366,4.65412909,114150.0,114140.0,0.03533338]
[1754114677783,3.6285808,114150.0,114140.0,0.03533338]
[1754114678027,4.32102726,114150.0,114140.0,0.03533338]
[1754114679861,4.66102726,114150.0,114140.0,0.03533338]
[1754114680335,3.9685808,114150.0,114140.0,0.03533338]
[1754114680600,4.66102726,114150.0,114140.0,0.03533338]
[1754114681027,3.9685808,114150.0,114140.0,0.03533338]
[1754114681276,4.66102726,114150.0,114140.0,0.03533338]
[1754114681996,3.9685808,114150.0,114140.0,0.03533338]
[1754114682225,4.66102726,114150.0,114140.0,0.03533338]
[1754114684164,1.53398026,114150.0,114140.0,0.03533338]
[1754114684485,4.66102726,114150.0,114140.0,0.03533338]
[1754114685671,3.9685808,114150.0,114140.0,0.03533338]
[1754114686287,4.66102726,114150.0,114140.0,0.03533338]
[1754114687891,4.66102726,114150.0,114140.0,0.03320338]
[1754114688048,5.35347372,114150.0,114140.0,0.03006338]
[1754114688258,5.37981872,114150.0,114140.0,0.03006338]
[1754114692952,3.9949258,114150.0,114140.0,0.03006338]
[1754114693261,5.37981872,114150.0,114140.0,0.03318338]
[1754114694668,4.68737226,114150.0,114140.0,0.03318338]
[1754114694874,5.37981872,114150.0,114140.0,0.03318338]
[1754114695507,2.25277172,114150.0,114140.0,0.03006338]
[1754114695852,3.9949258,114150.0,114140.0,0.03006338]
[1754114696054,5.37981872,114150.0,114140.0,0.03006338]